bitfinex/quotes_SOLUSD_20241125
["timestamp","ask_amount","ask_price","bid_price","bid_amount"]
[1732567711426,17.441,239.48,239.36,20.15764206]
[1732567711427,17.441,239.48,239.39,20.15764206]
[1732567711609,18.2761,239.48,239.39,20.15764206]
[1732567711928,17.441,239.48,239.41,20.15764206]
[1732567712337,18.2761,239.48,239.41,20.15764206]
[1732567712504,20.15764206,239.47,239.39,20.15764206]
[1732567712709,18.2761,239.48,239.37,20.15764206]
[1732567712710,20.15764206,239.45,239.37,20.15764206]
[1732567712921,20.15764206,239.43,239.35,27.04904206]
[1732567713647,20.15764206,239.39,239.31,20.15764206]
[1732567714031,20.99304206,239.39,239.31,20.15764206]
[1732567714447,20.15764206,239.37,239.29,20.15764206]
[1732567714827,20.99304206,239.39,239.29,20.15764206]
[1732567715036,20.15764206,239.37,239.29,20.15764206]
[1732567715731,20.99314206,239.37,239.29,20.15764206]
[1732567716029,20.15764206,239.35,239.27,20.15764206]
[1732567717323,0.8355,239.36,239.27,24.33694206]
[1732567717625,20.15764206,239.4,239.32,20.15764206]
[1732567718743,0.8354,239.39,239.32,20.15764206]
[1732567722056,20.15764206,239.44,239.36,20.15764206]
[1732567722223,20.15764206,239.46,239.38,20.15764206]
[1732567722425,20.15764206,239.46,239.36,20.15764206]
[1732567722840,20.99284206,239.46,239.36,20.15764206]
[1732567723023,20.15764206,239.42,239.33,40.15764206]
[1732567723455,20.15764206,239.44,239.35,20.15764206]
[1732567723626,20.15764206,239.42,239.35,20.15764206]
[1732567724027,0.8353,239.41,239.35,20.15764206]
[1732567724855,0.8353,239.41,239.33,20.15764206]
[1732567726148,20.15764206,239.44,239.35,20.15764206]
[1732567726455,0.66415794,239.41,239.36,20.15764206]
[1732567727529,0.66415794,239.41,239.35,4.1779]
[1732567728350,0.66415794,239.4,239.35,4.1779]
[1732567728952,0.66415794,239.4,239.34,24.33574206]
[1732567729757,0.66415794,239.4,239.32,24.33604206]
[1732567730059,0.66415794,239.4,239.34,20.15764206]
[1732567730554,0.8353,239.41,239.34,20.15764206]
[1732567730757,20.99284206,239.44,239.36,20.15764206]
[1732567730970,0.66415794,239.45,239.38,20.15764206]
[1732567731335,0.8352,239.46,239.4,20.15764206]
[1732567731642,0.66415794,239.45,239.4,20.15764206]
[1732567732861,0.66415794,239.43,239.4,20.15764206]
[1732567733159,0.8352,239.45,239.37,20.15764206]
[1732567733365,0.66415794,239.43,239.37,20.15764206]
[1732567733740,0.66415794,239.43,239.37,24.33514206]
[1732567733938,0.66415794,239.4,239.33,20.15764206]
[1732567734435,20.8218,239.4,239.33,20.15764206]
[1732567735056,20.8218,239.4,239.31,40.15764206]
[1732567735769,20.8218,239.4,239.34,20.0]
[1732567736769,0.66415794,239.42,239.35,20.15764206]
[1732567736972,0.66415794,239.44,239.37,20.15764206]
[1732567737467,0.66415794,239.42,239.38,4.1774]
[1732567737969,21.657,239.46,239.38,4.1774]
[1732567738167,0.66415794,239.43,239.38,4.1774]
[1732567738677,0.66415794,239.41,239.36,4.1776]
[1732567740181,0.66415794,239.41,239.34,20.0]
[1732567740390,20.8218,239.38,239.32,20.0]
[1732567740845,20.15764206,239.36,239.29,20.15764206]
[1732567741046,20.15764206,239.34,239.27,20.15764206]
[1732567741841,20.8218,239.36,239.27,20.15764206]
[1732567742068,30.0,239.33,239.29,20.15764206]
[1732567742255,30.0,239.33,239.05,22.23658609]
[1732567742256,30.0,239.33,239.27,20.15764206]
[1732567742570,30.0,239.33,239.29,20.15764206]
[1732567742776,30.0,239.33,239.27,20.15764206]
[1732567743278,0.66415794,239.29,239.23,24.33764206]
[1732567743581,30.66415794,239.31,239.25,20.15764206]
[1732567743769,0.66415794,239.29,239.25,20.15764206]
[1732567743964,30.0,239.31,239.25,20.15764206]
[1732567744144,30.0,239.31,239.25,24.33724206]
[1732567744347,30.0,239.31,239.21,10.4509]
[1732567744348,30.0,239.28,239.23,20.15764206]
[1732567744562,30.0,239.28,239.16,20.15764206]
[1732567744563,30.0,239.28,239.22,12.58527397]
[1732567744760,30.0,239.28,239.24,12.58527397]
[1732567744963,30.0,239.28,239.26,12.58527397]
[1732567745172,30.0,239.28,239.22,12.58527397]
[1732567745375,30.0,239.28,239.2,4.1806]
[1732567745376,30.0,239.28,239.24,12.58527397]
[1732567746259,30.0,239.28,239.24,20.13339922]
[1732567746847,30.0,239.28,239.23,24.31339922]
[1732567747786,30.0,239.28,239.27,20.13339922]
[1732567747964,30.0,239.28,239.18,10.0]
[1732567747965,30.0,239.28,239.24,20.13339922]
[1732567748160,0.66415794,239.25,239.2,20.13339922]
[1732567748467,0.66415794,239.25,239.18,20.13339922]
[1732567748468,0.66415794,239.24,239.18,20.13339922]
[1732567748771,20.79755716,239.24,239.15,4.1813]
[1732567748973,0.66415794,239.19,239.12,20.13339922]
[1732567749183,0.66415794,239.19,239.1,24.31559922]
[1732567749184,0.66415794,239.16,239.1,24.31559922]
[1732567749371,0.66415794,239.16,239.1,20.13339922]
[1732567749869,30.66415794,239.17,239.08,20.13339922]
[1732567750083,0.66415794,239.13,239.08,20.13339922]
[1732567750268,30.0,239.12,239.08,20.13339922]
[1732567751184,0.66415794,239.08,239.04,24.31659922]
[1732567751387,30.0,239.07,239.04,24.31659922]
[1732567752077,30.0,239.07,239.06,20.13339922]
[1732567753085,0.66415794,239.06,239.04,20.13339922]
[1732567753285,30.0,239.05,239.02,20.13339922]
[1732567754087,30.0,239.05,239.04,20.13339922]
[1732567755892,30.0,239.05,239.04,24.31679922]
[1732567756195,30.0,239.05,239.04,44.31679922]
[1732567757994,30.0,239.05,239.04,40.13339922]
[1732567759685,30.0,239.05,239.02,20.13339922]
[1732567759887,0.66415794,239.04,239.02,20.13339922]
[1732567760092,30.0,239.03,239.02,20.13339922]
[1732567760695,30.0,239.03,239.0,20.13339922]
[1732567761087,30.66415794,239.03,239.0,20.13339922]
[1732567761286,30.0,239.03,239.02,20.13339922]
[1732567762203,30.66415794,239.03,239.02,20.13339922]
[1732567762877,30.66415794,239.03,238.94,4.1851]
[1732567762878,0.66415794,239.02,238.94,4.1851]
[1732567763181,0.66415794,239.02,239.01,20.13339922]
[1732567763488,30.66415794,239.02,239.01,20.13339922]
[1732567764385,30.66415794,239.02,238.99,20.13339922]
[1732567764706,0.66415794,239.0,238.99,20.13339922]
[1732567764881,30.66415794,239.0,238.97,20.13339922]
[1732567765305,30.0,239.0,238.97,20.13339922]
[1732567765600,30.66415794,239.0,238.97,20.13339922]
[1732567765790,0.66415794,238.98,238.95,20.13339922]
[1732567765980,0.66415794,238.96,238.95,20.13339922]
[1732567766495,30.0,238.97,238.95,12.61470511]
[1732567766903,30.0,238.96,238.95,12.61470511]
[1732567768899,30.0,238.96,238.95,16.79960511]
[1732567770411,0.66415794,239.06,238.98,20.0]
[1732567770702,0.66415794,239.06,239.05,12.61470511]
[1732567770909,0.66415794,239.04,239.03,12.61470511]
[1732567771207,0.66415794,239.06,239.03,12.61470511]
[1732567771702,1.67645794,239.07,239.03,12.61470511]
[1732567771894,2.51295794,239.07,238.95,20.0]
[1732567772095,2.51295794,239.07,239.01,12.61470511]
[1732567772601,30.0,239.03,239.01,12.61470511]
[1732567772807,30.0,239.03,238.95,20.0]
[1732567773003,30.0,239.03,238.98,12.61470511]
[1732567774082,30.8367,239.03,238.98,12.61470511]
[1732567774300,30.8367,239.03,238.96,12.61470511]
[1732567774890,12.61470511,239.02,238.94,12.61470511]
[1732567775088,30.0,239.01,238.94,12.61470511]
[1732567776279,30.8368,239.01,238.83,10.0]
[1732567776487,12.61470511,238.95,238.88,12.61470511]
[1732567776705,30.0,238.94,238.87,12.61470511]
[1732567777005,12.61470511,238.93,238.84,4.1869]
[1732567777185,12.61470511,238.93,238.85,12.61470511]
[1732567777583,30.0,238.91,238.85,12.61470511]
[1732567778497,43.45180511,238.91,238.84,12.61470511]
[1732567778900,30.0,238.91,238.86,12.61470511]
[1732567779204,30.0,238.91,238.9,12.61470511]
[1732567780491,30.0,238.91,238.9,53.44307422]
[1732567780900,30.0,238.91,238.9,40.82836911]
[1732567781215,30.0,238.91,238.9,53.44307422]
[1732567781389,19.46030511,239.05,238.93,20.0]
[1732567781590,19.46030511,239.05,238.97,12.61470511]
[1732567781912,30.0,238.98,238.97,12.61470511]
[1732567782430,15.4093,239.06,238.97,16.92479511]
[1732567782584,15.4093,239.06,239.02,12.61470511]
[1732567782791,15.4093,239.11,239.04,12.61470511]
[1732567783100,15.4093,239.11,239.07,12.61470511]
[1732567783417,27.66330511,239.17,239.09,12.61470511]
[1732567783712,28.49950511,239.17,239.09,12.61470511]
[1732567784011,27.66330511,239.17,239.09,12.61470511]
[1732567784412,35.20758701,239.17,239.09,20.15898701]
[1732567784711,36.04378701,239.17,239.09,20.15898701]
[1732567784908,20.15898701,239.15,239.07,20.15898701]
[1732567785903,20.15898701,239.13,239.05,20.15898701]
[1732567786698,0.8364,239.12,239.03,20.15898701]
[1732567786905,0.8364,239.12,239.0,4.30959]
[1732567786906,0.8364,239.12,239.05,20.15898701]
[1732567787905,0.8364,239.12,238.97,2.27400278]
[1732567787906,20.15898701,239.11,239.01,20.15898701]
[1732567788125,20.15898701,239.11,239.03,20.15898701]
[1732567788913,0.8364,239.12,239.03,20.15898701]
[1732567789121,0.8364,239.12,239.05,20.15898701]
[1732567789428,20.15898701,239.15,239.05,24.34208701]
[1732567789635,20.15898701,239.13,239.05,20.15898701]
[1732567790708,20.99528701,239.13,239.05,20.15898701]
[1732567793201,20.15898701,239.11,239.01,20.15898701]
[1732567793406,20.99528701,239.13,239.05,20.15898701]
[1732567793800,20.99528701,239.13,238.98,0.12549]
[1732567793801,20.15898701,239.11,239.03,20.15898701]
[1732567794607,20.15898701,239.11,239.03,24.34248701]
[1732567796043,0.8364,239.12,239.05,20.15898701]
[1732567796251,0.8364,239.12,239.03,20.15898701]
[1732567796252,20.15898701,239.11,239.03,20.15898701]
[1732567797133,20.99538701,239.11,239.03,24.34238701]
[1732567799048,0.8364,239.12,239.05,20.15898701]
[1732567799224,0.8364,239.12,239.03,4.1834]
[1732567799225,35.20758701,239.17,239.09,20.15898701]
[1732567799426,35.20758701,239.17,239.04,0.12549]
[1732567799427,15.0486,239.17,239.11,20.15898701]
[1732567799633,10.14566977,239.18,239.15,20.15898701]
[1732567800329,10.14566977,239.18,239.13,20.15898701]
[1732567800529,10.14566977,239.18,239.17,20.15898701]
[1732567800922,2.0894,239.31,239.17,20.15898701]
[1732567800923,16.2929,239.29,239.2,20.0]
[1732567801131,16.2929,239.29,239.23,20.15898701]
[1732567801328,6.0679,239.34,239.2,20.0]
[1732567801329,0.8356,239.34,239.27,20.15898701]
[1732567801537,17.1284,239.36,239.29,20.15898701]
[1732567801739,20.15898701,239.3,239.22,20.0]
[1732567802020,20.15898701,239.24,239.15,20.15898701]
[1732567802236,20.15898701,239.22,239.15,20.15898701]
[1732567802548,20.15898701,239.22,239.13,0.12549]
[1732567802737,20.15898701,239.24,239.15,20.15898701]
[1732567803047,20.15898701,239.28,239.19,20.15898701]
[1732567803354,20.15898701,239.3,239.23,20.15898701]
[1732567803533,20.15898701,239.32,239.23,20.15898701]
[1732567803720,36.45188701,239.36,239.27,20.15898701]
[1732567803920,36.45188701,239.36,239.29,20.15898701]
[1732567804119,16.2929,239.36,239.29,20.15898701]
[1732567804351,20.15898701,239.34,239.27,20.15898701]
[1732567804548,20.15898701,239.34,239.28,20.0]
[1732567804752,37.28738701,239.36,239.28,20.0]
[1732567804942,37.28738701,239.36,239.27,20.15898701]
[1732567805249,36.45188701,239.36,239.27,24.33818701]
[1732567805459,26.95385569,239.4,239.31,20.15898701]
[1732567805620,20.15898701,239.38,239.31,20.15898701]
[1732567805959,20.15898701,239.36,239.29,20.15898701]
[1732567806321,12.58177261,239.34,239.3,20.0]
[1732567806641,12.58177261,239.34,239.29,20.0]
[1732567807619,13.41727261,239.36,239.29,20.0]
[1732567808347,28.95287261,239.3,239.17,4.1809]
[1732567808646,12.58177261,239.26,239.18,12.58177261]
[1732567809036,12.58177261,239.24,239.14,12.58177261]
[1732567809231,26.3711,239.3,239.12,16.76377261]
[1732567809232,12.58177261,239.2,239.12,16.76377261]
[1732567809435,12.58177261,239.18,239.08,12.58177261]
[1732567809743,12.58177261,239.18,239.1,12.58177261]
[1732567809933,23.776884,239.2,239.12,12.58177261]
[1732567809934,12.58177261,239.2,239.12,12.58177261]
[1732567810147,22.58177261,239.28,239.12,12.58177261]
[1732567810148,12.58177261,239.22,239.12,12.58177261]
[1732567810326,12.58177261,239.24,239.16,12.58177261]
[1732567810658,12.58177261,239.22,239.14,12.58177261]
[1732567811340,13.41777261,239.22,239.14,12.58177261]
[1732567811527,12.58177261,239.24,239.16,12.58177261]
[1732567811856,12.58177261,239.22,239.14,12.58177261]
[1732567812152,12.58177261,239.18,239.08,12.58177261]
[1732567812347,20.16166936,239.16,239.08,20.16166936]
[1732567812647,20.16166936,239.18,239.1,20.16166936]
[1732567812845,20.16166936,239.2,239.12,20.16166936]
[1732567813154,20.16166936,239.18,239.1,20.16166936]
[1732567813451,20.16166936,239.16,239.08,24.34426936]
[1732567813753,20.16166936,239.14,239.06,20.16166936]
[1732567813934,20.16166936,239.18,239.1,20.16166936]
[1732567814135,20.16166936,239.16,239.08,20.16166936]
[1732567814852,20.16166936,239.18,239.1,20.16166936]
[1732567815041,20.16166936,239.16,239.08,20.16166936]
[1732567815644,20.16166936,239.18,239.08,20.16166936]
[1732567816042,20.16166936,239.18,239.1,20.16166936]
[1732567816646,20.99776936,239.18,239.1,20.16166936]
[1732567816847,0.8361,239.18,239.1,20.16166936]
[1732567817038,20.99776936,239.18,239.1,20.16166936]
[1732567818557,0.8361,239.2,239.14,20.16166936]
[1732567819133,20.16166936,239.26,239.16,20.16166936]
[1732567819357,20.16166936,239.28,239.19,20.16166936]
[1732567820158,0.8357,239.31,239.25,20.16166936]
[1732567820358,0.8356,239.33,239.27,20.16166936]
[1732567820657,0.8356,239.35,239.29,20.16166936]
[1732567820961,0.8356,239.35,239.27,20.16166936]
[1732567821772,20.16166936,239.38,239.31,20.16166936]
[1732567822067,26.95653804,239.4,239.31,20.16166936]
[1732567822964,20.16166936,239.38,239.31,20.16166936]
[1732567823131,20.16166936,239.38,239.18,30.9047]
[1732567823132,20.16166936,239.34,239.16,10.4531]
[1732567823339,20.16166936,239.34,239.25,20.16166936]
[1732567824062,20.16166936,239.3,239.23,20.16166936]
[1732567824229,20.16166936,239.34,239.25,20.16166936]
[1732567824934,20.16166936,239.38,239.31,20.16166936]
[1732567825132,6.79486868,239.4,239.33,20.16166936]
[1732567825333,6.79486868,239.4,239.28,20.16166936]
[1732567825334,6.79486868,239.4,239.35,20.16166936]
[1732567827054,7.63026868,239.4,239.33,20.16166936]
[1732567827254,6.79486868,239.4,239.33,20.16166936]
[1732567827554,7.63026868,239.4,239.33,20.16166936]
[1732567827755,27.79193804,239.4,239.31,20.16166936]
[1732567828134,26.95653804,239.4,239.33,20.16166936]
[1732567828349,6.79486868,239.4,239.33,20.16166936]
[1732567828656,6.79486868,239.4,239.35,20.16166936]
[1732567829237,29.88043804,239.4,239.31,20.16166936]
[1732567829561,20.16166936,239.38,239.31,20.16166936]
[1732567830357,26.95653804,239.4,239.31,20.16166936]
[1732567830563,0.8355,239.38,239.31,20.16166936]
[1732567830735,20.99716936,239.38,239.31,20.16166936]
[1732567831355,0.8355,239.38,239.31,20.16166936]
[1732567831656,7.63026868,239.4,239.35,20.16166936]
[1732567831863,6.79486868,239.4,239.37,20.16166936]
[1732567832160,6.79486868,239.4,239.29,23.902374]
[1732567832161,45.79025483,239.48,239.39,20.16166936]
[1732567832345,0.8351,239.47,239.41,20.16166936]
[1732567832941,0.8351,239.47,239.39,20.16166936]
[1732567833149,0.8351,239.47,239.41,20.16166936]
[1732567833350,15.4942,239.48,239.41,20.16166936]
[1732567834068,36.64616936,239.54,239.45,20.16166936]
[1732567834249,17.3194,239.54,239.49,20.16166936]
[1732567834436,27.42288441,239.56,239.49,20.16166936]
[1732567834437,28.25768441,239.56,239.49,20.16166936]
[1732567835476,28.25768441,239.56,239.47,20.16166936]
[1732567835680,20.16166936,239.54,239.47,20.16166936]
[1732567835965,20.16166936,239.5,239.41,20.16166936]
[1732567836265,20.16166936,239.5,239.42,20.16166936]
[1732567836776,0.8351,239.49,239.42,20.16166936]
[1732567837066,0.8351,239.49,239.41,20.16166936]
[1732567837067,20.99676936,239.49,239.41,20.16166936]
[1732567837738,0.8351,239.49,239.43,20.16166936]
[1732567837939,20.99676936,239.49,239.41,20.16166936]
[1732567838664,20.16166936,239.47,239.39,24.33876936]
[1732567839065,20.16166936,239.47,239.39,20.16166936]
[1732567839566,0.8351,239.49,239.37,20.16166936]
[1732567839567,20.16166936,239.45,239.37,20.16166936]
[1732567839778,20.16166936,239.43,239.35,20.16166936]
[1732567839942,0.8353,239.42,239.35,20.16166936]
[1732567842371,20.16166936,239.47,239.39,20.16166936]
[1732567842544,43.93855336,239.49,239.41,20.16166936]
[1732567842746,30.0,239.42,239.41,20.16166936]
[1732567844869,30.0,239.42,239.37,20.16166936]
[1732567846282,30.0,239.42,239.39,20.16166936]
[1732567846655,30.0,239.42,239.41,20.16166936]
[1732567847159,30.0,239.42,239.4,20.16166936]
[1732567847360,30.0,239.42,239.41,0.12549]
[1732567848461,30.0,239.42,239.41,4.30239]
[1732567848662,30.0,239.42,239.4,24.33876936]
[1732567849958,30.0,239.42,239.4,20.16166936]
[1732567850477,30.0,239.42,239.38,20.16166936]
[1732567851380,30.8353,239.42,239.36,20.16166936]
[1732567851566,30.8353,239.42,239.34,20.16166936]
[1732567852083,20.16166936,239.41,239.32,20.16166936]
[1732567852258,30.0,239.39,239.32,20.16166936]
[1732567852653,0.8354,239.4,239.34,20.16166936]
[1732567853252,20.16166936,239.41,239.34,20.16166936]
[1732567853859,20.16166936,239.43,239.34,20.16166936]
[1732567854683,0.8353,239.42,239.34,20.16166936]
[1732567854880,20.16166936,239.41,239.34,20.16166936]
[1732567855177,20.16166936,239.37,239.28,20.16166936]
[1732567855567,20.16166936,239.37,239.22,14.6308]
[1732567855568,30.0,239.33,239.3,20.16166936]
[1732567856971,30.0,239.33,239.28,20.16166936]
[1732567857782,30.0,239.33,239.26,4.1794]
[1732567857783,0.8357,239.32,239.26,20.16166936]
[1732567857982,30.0,239.31,239.24,20.16166936]
[1732567858480,50.99736936,239.31,239.22,20.16166936]
[1732567858873,50.99736936,239.31,239.19,4.1807]
[1732567858874,30.0,239.31,239.24,20.16166936]
[1732567859060,30.0,239.31,239.26,20.16166936]
[1732567859784,30.8357,239.31,239.24,20.16166936]
[1732567860367,30.0,239.31,239.3,20.16166936]
[1732567860988,30.0,239.31,239.3,20.41264936]
[1732567861289,2.088,239.47,239.35,134.7]
[1732567861290,0.8353,239.44,239.35,134.7]
[1732567861459,35.56966936,239.47,239.33,0.12549]
[1732567861460,0.8352,239.46,239.33,0.12549]
[1732567861784,20.16166936,239.45,239.37,20.16166936]
[1732567862579,20.16166936,239.43,239.35,20.16166936]
[1732567863669,20.16166936,239.45,239.37,20.16166936]
[1732567865200,0.8352,239.44,239.35,20.16166936]
[1732567865493,20.16166936,239.43,239.35,20.16166936]
[1732567865664,0.8352,239.44,239.37,20.16166936]
[1732567866073,0.8352,239.46,239.39,20.16166936]
[1732567866270,35.56966936,239.47,239.34,20.25098]
[1732567866271,16.2432,239.47,239.41,20.16166936]
[1732567866571,0.8351,239.49,239.43,20.16166936]
[1732567866775,0.835,239.5,239.43,20.16166936]
[1732567867668,20.16166936,239.49,239.41,20.16166936]
[1732567867874,20.16166936,239.47,239.39,20.16166936]
[1732567868290,20.16166936,239.45,239.37,20.16166936]
[1732567868466,2.9226,239.5,239.31,6.3323]
[1732567868467,20.16166936,239.43,239.35,20.16166936]
[1732567868672,20.16166936,239.41,239.33,20.16166936]
[1732567868886,20.16166936,239.43,239.34,20.16166936]
[1732567869090,20.99696936,239.43,239.34,20.16166936]
[1732567869403,20.99696936,239.43,239.36,20.16166936]
[1732567870674,20.99696936,239.43,239.33,4.1782]
[1732567870675,20.16166936,239.41,239.32,20.16166936]
[1732567870871,20.99696936,239.43,239.34,20.16166936]
[1732567871091,20.99696936,239.43,239.36,20.16166936]
[1732567871800,20.99696936,239.43,239.29,4.30449]
[1732567871801,20.16166936,239.41,239.34,20.16166936]
[1732567872681,0.8353,239.43,239.26,34.350874]
[1732567872682,20.16166936,239.39,239.3,20.16166936]
[1732567873093,0.8355,239.36,239.28,20.16166936]
[1732567873791,0.8355,239.38,239.3,20.16166936]
[1732567874896,20.16166936,239.37,239.3,20.16166936]
[1732567875098,0.8355,239.36,239.28,20.16166936]
[1732567875684,15.504,239.4,239.32,20.16166936]
[1732567875685,20.99706936,239.39,239.32,20.16166936]
[1732567875998,10.0,239.49,239.24,23.902374]
[1732567875999,15.9897,239.46,239.38,20.16166936]
[1732567877511,15.1545,239.46,239.42,20.16166936]
[1732567877682,15.311,239.52,239.44,20.16166936]
[1732567877884,15.311,239.52,239.49,20.16166936]
[1732567878178,7.26121505,239.56,239.49,20.16166936]
[1732567878595,20.16166936,239.53,239.45,20.16166936]
[1732567879305,20.99656936,239.53,239.45,20.16166936]
[1732567879908,0.8349,239.55,239.47,20.16166936]
[1732567880209,7.26121505,239.56,239.51,20.16166936]
[1732567881009,7.26121505,239.56,239.55,20.16166936]
[1732567881783,7.26121505,239.56,239.53,20.16166936]
[1732567881983,7.26121505,239.56,239.51,20.16166936]
[1732567882178,7.26121505,239.56,239.53,20.16166936]
[1732567882399,7.26121505,239.56,239.55,20.16166936]
[1732567882779,7.26121505,239.56,239.53,20.16166936]
[1732567883183,7.26121505,239.56,239.51,20.16166936]
[1732567883386,8.09601505,239.56,239.49,20.16166936]
[1732567883584,20.16166936,239.55,239.46,20.16166936]
[1732567883994,20.16166936,239.53,239.46,20.16166936]
[1732567884990,20.16166936,239.51,239.44,20.16166936]
[1732567885219,20.16166936,239.49,239.4,20.16166936]
[1732567885592,20.16166936,239.47,239.4,20.16166936]
[1732567885898,20.16166936,239.45,239.38,20.16166936]
[1732567887022,0.8352,239.46,239.38,20.16166936]
[1732567887188,0.8351,239.48,239.42,20.16166936]
[1732567887894,20.16166936,239.47,239.4,20.16166936]
[1732567888102,20.16166936,239.47,239.38,43.93855336]
[1732567889115,0.8352,239.46,239.38,43.93855336]
[1732567889619,20.16166936,239.49,239.4,20.16166936]
[1732567889801,0.8351,239.48,239.41,23.776884]
[1732567889989,0.8351,239.48,239.4,20.16166936]
[1732567890191,20.16166936,239.47,239.39,23.776884]
[1732567890388,0.8351,239.48,239.4,20.16166936]
[1732567890615,20.16166936,239.47,239.39,23.776884]
[1732567891009,0.8352,239.46,239.39,23.776884]
[1732567891511,20.16166936,239.41,239.34,20.16166936]
[1732567891901,20.16166936,239.43,239.34,20.16166936]
[1732567892106,2.9232,239.46,239.3,4.1788]
[1732567892107,20.16166936,239.45,239.36,20.16166936]
[1732567894222,0.8351,239.48,239.4,20.16166936]
[1732567894406,0.8351,239.48,239.31,0.12549]
[1732567894407,20.16166936,239.45,239.38,20.16166936]
[1732567894605,20.16166936,239.45,239.36,20.16166936]
[1732567894809,20.16166936,239.45,239.37,23.776884]
[1732567895231,20.16166936,239.45,239.32,4.1785]
[1732567895232,20.16166936,239.41,239.32,20.16166936]
[1732567895412,20.16166936,239.41,239.33,23.776884]
[1732567895722,20.16166936,239.41,239.32,20.16166936]
[1732567895926,20.16166936,239.37,239.28,20.16166936]
[1732567896097,0.8355,239.36,239.28,20.16166936]
[1732567896302,20.99716936,239.37,239.28,24.34076936]
[1732567896615,20.99716936,239.37,239.3,20.16166936]
[1732567897111,20.16166936,239.41,239.34,20.16166936]
[1732567897505,20.16166936,239.41,239.35,23.776884]
[1732567898224,20.16166936,239.41,239.3,20.16166936]
[1732567898225,20.16166936,239.39,239.3,20.16166936]
[1732567898407,20.16166936,239.37,239.31,23.776884]
[1732567898928,20.16166936,239.37,239.29,23.776884]
[1732567899128,20.16166936,239.35,239.26,20.16166936]
[1732567899300,20.16166936,239.33,239.26,20.16166936]
[1732567899497,20.16166936,239.33,239.24,20.16166936]
[1732567899703,20.16166936,239.35,239.28,20.16166936]
[1732567900199,15.1005,239.4,239.18,25.32]
[1732567900200,20.16166936,239.37,239.3,20.16166936]
[1732567900399,20.99716936,239.37,239.3,20.16166936]
[1732567900807,20.99716936,239.37,239.31,23.776884]
[1732567901328,20.16166936,239.37,239.31,23.776884]
[1732567901525,0.8354,239.39,239.32,20.16166936]
[1732567901744,20.99706936,239.39,239.31,23.776884]
[1732567902106,20.16166936,239.39,239.32,20.16166936]
[1732567902340,15.1005,239.4,239.33,27.955184]
[1732567902630,15.1005,239.4,239.36,20.16166936]
[1732567902830,15.9359,239.4,239.34,20.16166936]
[1732567903037,20.16166936,239.39,239.33,23.776884]
[1732567903236,15.9359,239.4,239.33,23.776884]
[1732567904435,20.99706936,239.39,239.33,23.776884]
[1732567906118,15.1005,239.4,239.35,23.776884]
[1732567906316,0.8354,239.41,239.35,23.776884]
[1732567907414,20.99706936,239.41,239.33,23.776884]
[1732567908335,20.16166936,239.39,239.3,20.16166936]
[1732567908512,20.16166936,239.39,239.31,23.776884]
[1732567909740,20.99706936,239.41,239.32,20.16166936]
[1732567910245,20.99706936,239.41,239.33,23.776884]
[1732567911718,20.16166936,239.37,239.3,20.16166936]
[1732567911944,20.16166936,239.35,239.27,23.776884]
[1732567912330,0.8356,239.34,239.27,23.776884]
[1732567912520,20.16166936,239.33,239.27,23.776884]
[1732567913543,0.8357,239.32,239.27,23.776884]
[1732567913746,20.16166936,239.35,239.27,23.776884]
[1732567914536,20.99716936,239.37,239.29,20.16166936]
[1732567914837,20.99716936,239.37,239.27,23.776884]
[1732567914838,20.16166936,239.35,239.27,43.93855336]
[1732567915435,0.8356,239.34,239.27,43.93855336]
[1732567918433,20.16166936,239.4,239.27,43.93855336]
[1732567918434,20.16166936,239.4,239.31,20.16166936]
[1732567918633,20.16166936,239.34,239.27,23.776884]
[1732567918826,20.16166936,239.34,239.25,23.776884]
[1732567919025,20.16166936,239.34,239.27,23.776884]
[1732567920139,0.8356,239.35,239.29,23.776884]
[1732567920322,20.99706936,239.4,239.33,20.16166936]
[1732567920528,24.5833,239.45,239.35,20.16166936]
[1732567920529,0.8353,239.42,239.35,20.16166936]
[1732567921424,0.8353,239.44,239.38,23.776884]
[1732567921827,0.8352,239.46,239.41,20.16166936]
[1732567922241,35.74796936,239.51,239.44,23.776884]
[1732567922425,16.4213,239.51,239.45,20.16166936]
[1732567922824,36.58296936,239.51,239.44,23.776884]
[1732567923025,20.16166936,239.47,239.39,20.16166936]
[1732567923256,36.58296936,239.51,239.41,20.16166936]
[1732567923636,36.58296936,239.51,239.43,20.16166936]
[1732567923945,15.0877,239.44,239.33,20.16166936]
[1732567924122,0.8353,239.43,239.35,24.33956936]
[1732567924328,15.9229,239.44,239.37,20.16166936]
[1732567924627,15.9229,239.44,239.35,20.16166936]
[1732567924628,20.16166936,239.43,239.35,20.16166936]